{"text_format":"1","workbook":"xlsx","n_sheets":5,"sheets":["Using Insert Function Dialo (2)","Using Insert Function Dialog Bo","Use of Macro Options Method (2)","Use of Macro Options Method","User-Defined Function"],"not_rendered":{"charts":0,"images":0,"macros":1,"external_links":0,"defined_names":1,"comments":0,"pivot_tables":0},"unopened":[],"bounds":{"document_bytes":16777216,"sheet_cells":100000,"rows_first":2000,"rows_last":500,"rows_between":2000,"halvings":0,"cell_chars":16384,"cell_head_chars":4096},"cells_cut":0,"cells_raw":0,"read":"whole","date_system":"1900"}

{"sheet":"Using Insert Function Dialo (2)","index":0,"n_rows":9,"n_cols":13,"rows_kept":9,"cut":false,"hidden":false,"merged":[[1,1,1,2],[1,11,1,12]]}
[]
[null,"Using Insert Function Dialog Box",null,null,null,null,null,null,null,null,null,"Practice Yourself"]
[]
[null,"Data","Sign",null,null,null,null,null,null,null,null,"Data","Sign"]
[null,12,{"$f":"NumberSign(B5)","v":"Positive"},null,null,null,null,null,null,null,null,-10]
[null,14,{"$f":"NumberSign(B6)","v":"Positive"},null,null,null,null,null,null,null,null,0]
[null,0,{"$f":"NumberSign(B7)","v":"Zero"},null,null,null,null,null,null,null,null,198]
[null,-123,{"$f":"NumberSign(B8)","v":"Negative"},null,null,null,null,null,null,null,null,-111]
[null,-54.66,{"$f":"NumberSign(B9)","v":"Negative"},null,null,null,null,null,null,null,null,54]

{"sheet":"Using Insert Function Dialog Bo","index":1,"n_rows":9,"n_cols":13,"rows_kept":9,"cut":false,"hidden":false,"merged":[[1,1,1,2],[1,11,1,12]]}
[]
[null,"Using Insert Function Dialog Box",null,null,null,null,null,null,null,null,null,"Practice Yourself"]
[]
[null,"Data","Sign",null,null,null,null,null,null,null,null,"Data","Sign"]
[null,12,{"$f":"NumberSign(B5)","v":"Positive"},null,null,null,null,null,null,null,null,-10]
[null,14,{"$f":"NumberSign(B6)","v":"Positive"},null,null,null,null,null,null,null,null,0]
[null,0,"Zero",null,null,null,null,null,null,null,null,198]
[null,-123,"Negative",null,null,null,null,null,null,null,null,-111]
[null,-54.66,{"$f":"NumberSign(B9)","v":"Negative"},null,null,null,null,null,null,null,null,54]

{"sheet":"Use of Macro Options Method (2)","index":2,"n_rows":9,"n_cols":13,"rows_kept":9,"cut":false,"hidden":false,"merged":[[1,1,1,2],[1,11,1,12]]}
[]
[null,"Use of Macro Options Method",null,null,null,null,null,null,null,null,null,"Practice Yourself"]
[]
[null,"Data","Sign",null,null,null,null,null,null,null,null,"Data","Sign"]
[null,12,{"$f":"NumberSign(B5)","v":"Positive"},null,null,null,null,null,null,null,null,-10]
[null,14,{"$f":"NumberSign(B6)","v":"Positive"},null,null,null,null,null,null,null,null,0]
[null,0,{"$f":"NumberSign(B7)","v":"Zero"},null,null,null,null,null,null,null,null,198]
[null,-123,{"$f":"NumberSign(B8)","v":"Negative"},null,null,null,null,null,null,null,null,-111]
[null,-54.66,{"$f":"NumberSign(B9)","v":"Negative"},null,null,null,null,null,null,null,null,54]

{"sheet":"Use of Macro Options Method","index":3,"n_rows":9,"n_cols":13,"rows_kept":9,"cut":false,"hidden":false,"merged":[[1,1,1,2],[1,11,1,12]]}
[]
[null,"Use of Macro Options Method",null,null,null,null,null,null,null,null,null,"Practice Yourself"]
[]
[null,"Data","Sign",null,null,null,null,null,null,null,null,"Data","Sign"]
[null,12,{"$f":"NumberSign(B5)","v":"Positive"},null,null,null,null,null,null,null,null,-10]
[null,14,{"$f":"NumberSign(B6)","v":"Positive"},null,null,null,null,null,null,null,null,0]
[null,0,"Zero",null,null,null,null,null,null,null,null,198]
[null,-123,"Negative",null,null,null,null,null,null,null,null,-111]
[null,-54.66,{"$f":"NumberSign(B9)","v":"Negative"},null,null,null,null,null,null,null,null,54]

{"sheet":"User-Defined Function","index":4,"n_rows":9,"n_cols":13,"rows_kept":9,"cut":false,"hidden":false,"merged":[[1,1,1,2],[1,11,1,12]]}
[]
[null,"Creating a Simple User-Defined Function",null,null,null,null,null,null,null,null,null,"Practice Yourself"]
[]
[null,"Data","Sign",null,null,null,null,null,null,null,null,"Data","Sign"]
[null,12,{"$f":"NumberSign(B5)","v":"Positive"},null,null,null,null,null,null,null,null,-10]
[null,14,{"$f":"NumberSign(B6)","v":"Positive"},null,null,null,null,null,null,null,null,0]
[null,0,"Zero",null,null,null,null,null,null,null,null,198]
[null,-123,"Negative",null,null,null,null,null,null,null,null,-111]
[null,-54.66,{"$f":"NumberSign(B9)","v":"Negative"},null,null,null,null,null,null,null,null,54]